{"text_format":"1","workbook":"xlsx","n_sheets":8,"sheets":["シート管理","⑦-1","⑦-2","⑦-3","⑦-4","⑦-注","プルダウン管理","チェックボックス管理"],"not_rendered":{"charts":0,"images":0,"macros":1,"external_links":1,"defined_names":85,"comments":1,"pivot_tables":0},"unopened":[],"bounds":{"document_bytes":16777216,"sheet_cells":100000,"rows_first":2000,"rows_last":500,"rows_between":2000,"halvings":0,"cell_chars":16384,"cell_head_chars":4096},"cells_cut":0,"cells_raw":0,"read":"whole","date_system":"1900"}

{"sheet":"シート管理","index":0,"n_rows":5,"n_cols":3,"rows_kept":5,"cut":false,"hidden":false,"merged":[[1,0,4,0],[0,1,0,2]]}
["申請書","シート"]
["⑦完了検査申請書","完了検査申請書第一面","⑦-1"]
[null,"第二面","⑦-2"]
[null,"第三面","⑦-3"]
[null,"第四面","⑦-4"]

{"sheet":"⑦-1","index":1,"n_rows":54,"n_cols":22,"rows_kept":54,"cut":false,"hidden":false,"merged":[[49,16,50,16],[49,7,50,14],[27,12,27,20],[28,12,28,20],[29,12,29,20],[38,18,38,20],[49,20,50,20],[49,15,50,15],[34,12,34,20],[49,21,50,21],[49,17,50,17],[49,18,50,18],[49,19,50,19],[53,0,54,6],[53,7,54,14],[53,15,54,21],[51,0,52,0],[51,6,52,6],[51,7,52,8],[51,10,52,10],[51,12,52,12],[51,14,52,14],[51,15,52,21],[51,1,52,5],[51,9,52,9],[51,11,52,11],[51,13,52,13],[49,6,50,6],[49,5,50,5],[3,0,3,21],[5,0,5,21],[8,0,11,21],[34,8,34,11],[47,0,48,6],[47,7,48,14],[47,15,48,21],[49,0,50,0],[49,1,50,1],[49,2,50,2],[49,3,50,3],[49,4,50,4]]}
["第十九号様式（第四条、第四条の四の二関係）（Ａ４）"]
[]
[]
["完了検査申請書"]
[]
["（第一面）"]
[]
[]
["　工事を完了しましたので、建築基準法第７条の２第１項（この規定を同法第８７条の２又は第８８条第１項若しくは第２項において準用する場合を含む。）の規定により、検査を申請します。この申請書及び添付図書に記載の事項は、事実に相違ありません。。\n　申請にあたっては、株式会社秋田建築確認検査機関確認検査業務約款を遵守します。"]
[]
[]
[]
[]
[]
["　株式会社秋田建築確認検査機関"]
["　　代表取締役　大島　由鶴　様"]
[]
[]
[]
[null,null,null,null,null,null,null,null,null,null,null,null,null,null,null,"令和",null,"年",null,"月",null,"日"]
[]
[]
[]
[]
[]
[]
[]
[null,null,null,null,null,null,null,null,"申請者氏名"]
[]
[]
[]
[]
[null,null,"第四面に記載の事項は、事実に相違ありません。"]
[]
[null,null,null,null,null,null,null,null,"工事監理者氏名"]
[]
[]
[]
["【検査を申請する建築物等】",null,null,null,null,null,"（確認番号：令和",null,null,null,null,"年",null,"月",null,"日","秋建確第",null,null,null,null,"号）"]
[]
[]
[null,null,null,"建築物",null,null,null,null,"建築設備（昇降機）",null,null,null,null,null,null,"建築設備（昇降機以外）"]
[null,null,null,"工作物（昇降機）",null,null,null,null,"工作物（法第88条第1項）",null,null,null,null,null,null,"工作物（法第88条第2項）"]
[]
[]
[]
[]
["※受付欄",null,null,null,null,null,null,"※検査欄",null,null,null,null,null,null,null,"※検査済証欄"]
[]
["  令和",null,"年",null,"月",null,"日",null,null,null,null,null,null,null,null," 令和",null,"年",null,"月",null,"日"]
[]
["第",null,null,null,null,null,"号"," (実施日)\n 令和",null,null,"年",null,"月",null,"日","秋健確　第 　Ｔ　　　　　号"]
[]
["係員氏名",null,null,null,null,null,null,"係員氏名",null,null,null,null,null,null,null,"係員氏名"]

{"sheet":"⑦-2","index":2,"n_rows":137,"n_cols":33,"rows_kept":137,"cut":false,"hidden":false,"merged":[[137,8,139,32],[128,12,128,31],[130,8,130,32],[131,14,131,17],[131,25,131,28],[132,8,132,32],[133,8,133,11],[134,8,134,32],[135,8,135,13],[136,0,136,3],[119,12,119,16],[119,17,119,21],[119,22,119,26],[119,27,119,31],[120,12,120,31],[126,7,126,32],[127,12,127,16],[127,17,127,21],[127,22,127,26],[127,27,127,31],[121,7,121,32],[122,7,122,32],[103,12,103,31],[107,7,107,10],[109,7,109,12],[110,7,110,32],[111,12,111,16],[111,17,111,21],[111,22,111,26],[111,27,111,31],[112,12,112,31],[105,7,105,32],[106,7,106,32],[108,7,108,32],[15,23,15,28],[26,12,26,31],[34,8,34,13],[36,12,36,31],[43,8,43,13],[45,12,45,31],[52,8,52,13],[54,12,54,31],[63,8,63,13],[39,9,39,10],[39,18,39,20],[39,27,39,31],[44,12,44,16],[44,17,44,21],[44,22,44,26],[44,27,44,31],[46,9,46,10],[46,18,46,21],[57,9,57,10],[57,18,57,21],[57,27,57,31],[58,8,58,32],[37,9,37,10],[40,8,40,32],[101,7,101,32],[102,12,102,16],[102,17,102,21],[102,22,102,26],[102,27,102,31],[88,8,88,32],[89,8,89,11],[92,12,92,16],[92,17,92,21],[92,22,92,26],[92,27,92,31],[93,12,93,31],[99,7,99,32],[91,8,91,13],[98,7,98,10],[100,7,100,12],[85,9,85,10],[85,18,85,21],[86,8,86,32],[87,9,87,10],[87,18,87,20],[87,27,87,31],[79,8,79,32],[80,8,80,11],[83,12,83,16],[83,17,83,21],[83,22,83,26],[83,27,83,31],[82,8,82,13],[84,12,84,31],[74,22,74,26],[74,27,74,31],[76,9,76,10],[76,18,76,21],[77,8,77,32],[78,9,78,10],[78,18,78,20],[78,27,78,31],[68,8,68,32],[69,9,69,10],[69,18,69,20],[69,27,69,31],[70,8,70,32],[71,8,71,11],[73,8,73,13],[75,12,75,31],[64,12,64,16],[64,17,64,21],[64,22,64,26],[64,27,64,31],[67,9,67,10],[67,18,67,21],[67,27,67,31],[59,9,59,10],[59,18,59,20],[59,27,59,31],[60,8,60,32],[61,8,61,11],[65,12,65,31],[35,17,35,21],[35,22,35,26],[35,27,35,31],[37,18,37,21],[37,27,37,31],[38,8,38,32],[47,8,47,32],[48,9,48,10],[48,18,48,20],[48,27,48,31],[49,8,49,32],[50,8,50,11],[53,12,53,16],[53,17,53,21],[46,27,46,31],[20,18,20,20],[20,27,20,31],[19,8,19,32],[31,8,31,32],[32,8,32,11],[35,12,35,16],[53,22,53,26],[53,27,53,31],[28,9,28,10],[30,9,30,10],[29,8,29,32],[28,18,28,21],[30,18,30,20],[28,27,28,31],[30,27,30,31],[25,22,25,26],[25,27,25,31],[20,9,20,10],[41,8,41,11],[113,7,113,32],[114,7,114,32],[124,7,124,32],[125,7,125,32],[116,7,116,32],[117,7,117,32],[118,7,118,32],[0,0,0,33],[76,27,76,31],[85,27,85,31],[13,8,13,11],[15,8,15,14],[18,9,18,10],[9,9,9,10],[9,18,9,21],[9,27,9,31],[11,9,11,10],[11,18,11,20],[11,27,11,31],[21,8,21,32],[22,8,22,11],[24,8,24,14],[25,12,25,16],[25,17,25,21],[3,8,3,32],[4,8,4,32],[5,8,5,14],[7,8,7,14],[115,7,115,32],[123,7,123,32],[6,8,6,32],[14,8,14,32],[23,8,23,32],[33,8,33,32],[42,8,42,32],[51,8,51,32],[62,8,62,32],[90,8,90,32],[81,8,81,32],[72,8,72,32],[10,8,10,32],[12,8,12,32],[96,7,96,32],[97,7,97,32],[74,12,74,16],[74,17,74,21],[18,27,18,31],[18,18,18,21]]}
["（第二面）"]
["建築主、設置者又は築造主等の概要"]
["【1.建築主、設置者又は築造主】"]
[null,"【ｲ.氏名のﾌﾘｶﾞﾅ】"]
[null,"【ﾛ.氏　　名】"]
[null,"【ﾊ.郵便番号】"]
[null,"【ﾆ.住　　所】"]
[null,"【ﾎ.電話番号】"]
["【2.代理者】"]
[null,"【ｲ.資　　格】",null,null,null,null,null,null,"（",null,null,"）","建築士",null,null,null,null,"（",null,null,null,null,"）",null,null,null,"登録　　第",null,null,null,null,null,"号"]
[null,"【ﾛ.氏　　名】"]
[null,"【ﾊ.建築士事務所名】",null,null,null,null,null,null,"（",null,null,"）","建築士事務所",null,null,null,null,"（",null,null,null,"）",null,null,null,null,"知事登録　　第",null,null,null,null,null,"号"]
[]
[null,"【ﾆ.郵便番号】"]
[null,"【ﾎ.所 在 地】"]
[null,"【ﾍ.電話番号】",null,null,null,null,null,null,null,null,null,null,null,null,null,null,null,null,"【ﾌｧｯｸｽ番号】"]
["【3.設計者】"]
["（代表となる設計者）"]
[null,"【ｲ.資　　格】",null,null,null,null,null,null,"（",null,null,"）","建築士",null,null,null,null,"（",null,null,null,null,"）",null,null,null,"登録　　第",null,null,null,null,null,"号"]
[null,"【ﾛ.氏　　名】"]
[null,"【ﾊ.建築士事務所名】",null,null,null,null,null,null,"（",null,null,"）","建築士事務所",null,null,null,null,"（",null,null,null,"）",null,null,null,null,"知事登録　第",null,null,null,null,null,"号"]
[]
[null,"【ﾆ.郵便番号】"]
[null,"【ﾎ.所 在 地】"]
[null,"【ﾍ.電話番号】"]
[null,"【ﾄ.作成した設計図書】"]
[]
["（その他の設計者）"]
[null,"【ｲ.資　　格】",null,null,null,null,null,null,"（",null,null,"）","建築士",null,null,null,null,"（",null,null,null,null,"）",null,null,null,"登録　　第",null,null,null,null,null,"号"]
[null,"【ﾛ.氏　　名】"]
[null,"【ﾊ.建築士事務所名】",null,null,null,null,null,null,"（",null,null,"）","建築士事務所",null,null,null,null,"（",null,null,null,"）",null,null,null,null,"知事登録　第",null,null,null,null,null,"号"]
[]
[null,"【ﾆ.郵便番号】"]
[null,"【ﾎ.所 在 地】"]
[null,"【ﾍ.電話番号】"]
[null,"【ﾄ.作成した設計図書】"]
[]
[null,"【ｲ.資　　格】",null,null,null,null,null,null,"（",null,null,"）","建築士",null,null,null,null,"（",null,null,null,null,"）",null,null,null,"登録　　第",null,null,null,null,null,"号"]
[null,"【ﾛ.氏　　名】"]
[null,"【ﾊ.建築士事務所名】",null,null,null,null,null,null,"（",null,null,"）","建築士事務所",null,null,null,null,"（",null,null,null,"）",null,null,null,null,"知事登録　第",null,null,null,null,null,"号"]
[]
[null,"【ﾆ.郵便番号】"]
[null,"【ﾎ.所 在 地】"]
[null,"【ﾍ.電話番号】"]
[null,"【ﾄ.作成した設計図書】"]
[]
[null,"【ｲ.資　　格】",null,null,null,null,null,null,"（",null,null,"）","建築士",null,null,null,null,"（",null,null,null,null,"）",null,null,null,"登録　　第",null,null,null,null,null,"号"]
[null,"【ﾛ.氏　　名】"]
[null,"【ﾊ.建築士事務所名】",null,null,null,null,null,null,"（",null,null,"）","建築士事務所",null,null,null,null,"（",null,null,null,"）",null,null,null,null,"知事登録　第",null,null,null,null,null,"号"]
[]
[null,"【ﾆ.郵便番号】"]
[null,"【ﾎ.所 在 地】"]
[null,"【ﾍ.電話番号】"]
[null,"【ﾄ.作成した設計図書】"]
[]
["【4.工事監理者】"]
["（代表となる工事監理者）"]
[null,"【ｲ.資　　格】",null,null,null,null,null,null,"（",null,null,"）","建築士",null,null,null,null,"（",null,null,null,null,"）",null,null,null,"登録　　第",null,null,null,null,null,"号"]
[null,"【ﾛ.氏　　名】"]
[null,"【ﾊ.建築士事務所名】",null,null,null,null,null,null,"（",null,null,"）","建築士事務所",null,null,null,null,"（",null,null,null,"）",null,null,null,null,"知事登録　第",null,null,null,null,null,"号"]
[]
[null,"【ﾆ.郵便番号】"]
[null,"【ﾎ.所 在 地】"]
[null,"【ﾍ.電話番号】"]
[null,"【ﾄ.工事と照合した設計図書】"]
[]
["（その他の工事監理者）"]
[null,"【ｲ.資　　格】",null,null,null,null,null,null,"（",null,null,"）","建築士",null,null,null,null,"（",null,null,null,null,"）",null,null,null,"登録　　第",null,null,null,null,null,"号"]
[null,"【ﾛ.氏　　名】"]
[null,"【ﾊ.建築士事務所名】",null,null,null,null,null,null,"（",null,null,"）","建築士事務所",null,null,null,null,"（",null,null,null,"）",null,null,null,null,"知事登録　第",null,null,null,null,null,"号"]
[]
[null,"【ﾆ.郵便番号】"]
[null,"【ﾎ.所 在 地】"]
[null,"【ﾍ.電話番号】"]
[null,"【ﾄ.工事と照合した設計図書】"]
[]
[null,"【ｲ.資　　格】",null,null,null,null,null,null,"（",null,null,"）","建築士",null,null,null,null,"（",null,null,null,null,"）",null,null,null,"登録　　第",null,null,null,null,null,"号"]
[null,"【ﾛ.氏　　名】"]
[null,"【ﾊ.建築士事務所名】",null,null,null,null,null,null,"（",null,null,"）","建築士事務所",null,null,null,null,"（",null,null,null,"）",null,null,null,null,"知事登録　第",null,null,null,null,null,"号"]
[]
[null,"【ﾆ.郵便番号】"]
[null,"【ﾎ.所 在 地】"]
[null,"【ﾍ.電話番号】"]
[null,"【ﾄ.工事と照合した設計図書】"]
[]
[null,"【ｲ.資　　格】",null,null,null,null,null,null,"（",null,null,"）","建築士",null,null,null,null,"（",null,null,null,null,"）",null,null,null,"登録　　第",null,null,null,null,null,"号"]
[null,"【ﾛ.氏　　名】"]
[null,"【ﾊ.建築士事務所名】",null,null,null,null,null,null,"（",null,null,"）","建築士事務所",null,null,null,null,"（",null,null,null,"）",null,null,null,null,"知事登録　第",null,null,null,null,null,"号"]
[]
[null,"【ﾆ.郵便番号】"]
[null,"【ﾎ.所 在 地】"]
[null,"【ﾍ.電話番号】"]
[null,"【ﾄ.工事と照合した設計図書】"]
[]
["【5.建築設備の工事監理に関し意見を聴いた者】"]
["（代表となる建築設備の工事監理に関し意見を聴いた者）"]
[null,"【ｲ.氏　　名】"]
[null,"【ﾛ.勤 務 先】"]
[null,"【ﾊ.郵便番号】"]
[null,"【ﾆ.所 在 地】"]
[null,"【ﾎ.電話番号】"]
[null,"【ﾍ.登録番号】"]
[null,"【ﾄ.意見を聴いた設計図書】"]
[]
["（その他の建築設備の工事監理に関し意見を聴いた者）"]
[null,"【ｲ.氏　　名】"]
[null,"【ﾛ.勤 務 先】"]
[null,"【ﾊ.郵便番号】"]
[null,"【ﾆ.所 在 地】"]
[null,"【ﾎ.電話番号】"]
[null,"【ﾍ.登録番号】"]
[null,"【ﾄ.意見を聴いた設計図書】"]
[]
[null,"【ｲ.氏　　名】"]
[null,"【ﾛ.勤 務 先】"]
[null,"【ﾊ.郵便番号】"]
[null,"【ﾆ.所 在 地】"]
[null,"【ﾎ.電話番号】"]
[null,"【ﾍ.登録番号】"]
[null,"【ﾄ.意見を聴いた設計図書】"]
[]
[null,"【ｲ.氏　　名】"]
[null,"【ﾛ.勤 務 先】"]
[null,"【ﾊ.郵便番号】"]
[null,"【ﾆ.所 在 地】"]
[null,"【ﾎ.電話番号】"]
[null,"【ﾍ.登録番号】"]
[null,"【ﾄ.意見を聴いた設計図書】"]
[]
["【6.工事施工者】"]
[null,"【ｲ.氏　　名】"]
[null,"【ﾛ.営業所名】",null,null,null,null,null,null,"建設業の許可",null,null,null,null,"（",null,null,null,null,"）","（",null,"－",null,"）","第",null,null,null,null,"号"]
[]
[null,"【ﾊ.郵便番号】"]
[null,"【ﾆ.所 在 地】"]
[null,"【ﾎ.電話番号】"]
["【7.備考】"]

{"sheet":"⑦-3","index":3,"n_rows":42,"n_cols":31,"rows_kept":42,"cut":false,"hidden":false,"merged":[[0,0,0,33],[41,0,41,3],[6,21,6,25],[12,13,12,18],[15,11,15,12],[15,14,15,15],[15,17,15,18],[21,11,21,12],[21,14,21,15],[21,17,21,18],[24,11,24,12],[24,14,24,15],[24,17,24,18],[27,9,27,17],[29,12,29,17],[31,11,31,18],[36,8,40,32],[41,8,44,32],[32,11,32,18],[30,22,30,29],[31,22,31,29],[32,22,32,29],[35,12,35,32],[10,8,10,32],[29,23,29,28],[30,11,30,18],[18,9,18,31],[3,7,3,33],[4,7,4,33]]}
["（第三面）"]
["申請する工事の概要"]
["【1.建築場所、設置場所又は築造場所】"]
[null,"【ｲ.地名地番】"]
[null,"【ﾛ.住居表示】"]
["【2.工事種別】"]
[null,"【ｲ.建築基準法施行令第１０条各号に掲げる建築物の区分】",null,null,null,null,null,null,null,null,null,null,null,null,null,null,null,null,null,null,"第",null,null,null,null,null,"号"]
[null,"【ﾛ.工事種別】",null,null,null,null,null,null,null,"新築",null,null,null,"増築",null,null,null,"改築",null,null,null,"移転"]
[null,null,null,null,null,null,null,null,null,"大規模の修繕",null,null,null,null,null,null,"大規模の模様替",null,null,null,null,null,null,"建築設備の設置"]
[null,"【ﾊ.建築基準法第68条の20第2項の検査の特例に係る認証番号】"]
[]
[]
["【3.確認済証番号】",null,null,null,null,null,null,null,null,"秋建確　第　　",null,null,null,{"$f":"IF('⑦-1'!S39=\"\",\"\",'⑦-1'!S39)","v":""},null,null,null,null,null,"号"]
[]
[]
["【4.確認済証交付年月日】　　",null,null,null,null,null,null,null,null,"令和",null,{"$f":"IF('⑦-1'!K39=\"\",\"\",'⑦-1'!K39)","v":""},null,"年",{"$f":"IF('⑦-1'!M39=\"\",\"\",'⑦-1'!M39)","v":""},null,"月",{"$f":"IF('⑦-1'!O39=\"\",\"\",'⑦-1'!O39)","v":""},null,"日"]
[]
[]
["【5.確認済証交付者】　　",null,null,null,null,null,null,null,null,"株式会社秋田建築確認検査機関　　代表取締役　　大島　由鶴"]
[]
[]
["【6.工事着手年月日】　　",null,null,null,null,null,null,null,null,"令和",null,null,null,"年",null,null,"月",null,null,"日"]
[]
[]
["【7.工事完了年月日】　　",null,null,null,null,null,null,null,null,"令和",null,null,null,"年",null,null,"月",null,null,"日"]
[]
[]
["【8.検査対象床面積】　　",null,null,null,null,null,null,null,null,null,null,null,null,null,null,null,null,null,"㎡"]
[]
["【9.検査経過】",null,null,null,null,null,null,null,null,null,"（","第",null,null,null,null,null,null,"回","）",null,"（","第",null,null,null,null,null,null,"回","）"]
[null,"【ｲ.特定工程】",null,null,null,null,null,null,null,null,"（",null,null,null,null,null,null,null,null,"）",null,"（",null,null,null,null,null,null,null,null,"）"]
[null,"【ﾛ.中間検査合格証交付者】",null,null,null,null,null,null,null,null,"（",null,null,null,null,null,null,null,null,"）",null,"（",null,null,null,null,null,null,null,null,"）"]
[null,"【ﾊ.中間検査合格証番号】",null,null,null,null,null,null,null,null,"（",null,null,null,null,null,null,null,null,"）",null,"（",null,null,null,null,null,null,null,null,"）"]
[null,"【ﾆ.交付年月日】",null,null,null,null,null,null,null,null,"（","令和",null,null,"年",null,"月",null,"日","）",null,"（","令和",null,null,"年",null,"月",null,"日","）"]
["【10.確認以降の軽微な変更の概要】"]
[null,"【ｲ.変更された設計図書の種類】"]
[null,"【ﾛ.変更の概要】"]
[]
[]
[]
[]
["【11.備考】"]

{"sheet":"⑦-4","index":4,"n_rows":15,"n_cols":7,"rows_kept":15,"cut":false,"hidden":false,"merged":[[14,1,14,6],[0,0,0,6],[1,0,1,6],[2,0,3,0],[2,1,3,1],[2,2,3,2],[2,3,3,3],[2,4,3,4],[2,5,3,5]]}
["（第四面）"]
["工事監理の状況"]
[null,"確認を行った部位、材料の種類等","照合内容","照合を行った設計図書","設計図書の内容について設計者に確認した事項","照合方法","照合結果"]
[null,null,null,null,null,null,"（不適の場合には建築主に対して行った報告の内容）"]
["敷地の形状、高さ、衛生及び安全"]
["主要構造部及び主要構造部以外の構造耐力上主要な部分に用いる材料（接合材料を含む。）の種類、品質、形状及び寸法"]
["主要構造部及び主要構造部以外の構造耐力上主要な部分に用いる材料の接合状況、接合部分の形状等"]
["建築物の各部分の位置、形状及び大きさ"]
["構造耐力上主要な部分の防錆、防腐及び防蟻措置及び状況"]
["特定天井に用いる材料の種類並びに当該特定天井の構造及び施工状況"]
["居室の内装の仕上げに用いる建築材料の種別及び当該建築材料を用いる部分の面積"]
["天井及び壁の室内に面する部分に係る仕上げの材料の種別及び厚さ"]
["開口部に設ける建具の種類及び大きさ"]
["建築設備に用いる材料の種類及びその照合した内容並びに当該建築設備の構造及び施工状況（区画貫通部の処理状況を含む。）"]
["備　　　　　　考"]

{"sheet":"⑦-注","index":5,"n_rows":69,"n_cols":3,"rows_kept":69,"cut":false,"hidden":true,"merged":[]}
["（注意）"]
["１．","各面共通関係"]
[null,"数字は算用数字を、単位はメートル法を用いてください。"]
["２．","第一面関係"]
[null,"①","申請者又は工事監理者の氏名の記載を自署で行う場合においては、押印を省略することができます。"]
[null,"②","「検査を申請する建築物等」の欄は、該当するチェックボックスに「レ」マークを入れてください。建築基準法第８８条第１項に"]
[null,null,"規定する工作物のうち同法施行令第１３８条第２項第１号に掲げるものにあっては、「工作物（昇降機）」の"]
[null,null,"チェックボックスに「レ」マークを入れてください。"]
[null,"③","※印のある欄は記入しないでください。"]
["３．","第二面関係"]
[null,"①","建築主、設置者又は築造主が２以上のときは、１欄は代表となる建築主、設置者又は築造主について記入し、"]
[null,null,"別紙に他の建築主、設置者又は築造主についてそれぞれ必要な事項を記入して添えてください。"]
[null,"②","建築主、設置者又は築造主からの委任を受けて申請を行う者がいる場合においては、２欄に記入してください。"]
[null,"③","２欄、３欄及び５欄は、代理者、設計者又は工事監理者が建築士事務所に属しているときは、その名称を書き、"]
[null,null,"建築士事務所に属していないときは、所在地はそれぞれ代理者、設計者又は工事監理者の住所を書いてください。"]
[null,"④","３欄、４欄及び５欄は、それぞれ代表となる設計者、工事監理者及び建築設備の工事監理に関し意見を聴いた者並びに"]
[null,null,"申請に係る建築物に係る他のすべての設計者、工事監理者及び建築設備の工事監理に関し意見を聴いた者について"]
[null,null,"記入してください。記入欄が不足する場合には、別紙に必要な事項を記入して添えてください。"]
[null,"⑤","５欄は、建築士法第２０条第５項に規定する場合（工事監理に係る場合に限る。）に、同項に定める資格を有する"]
[null,null,"者について記入し、所在地は、その者が勤務しているときは勤務先の所在地を、勤務していないときはその者の住所を、"]
[null,null,"登録番号は建築士法施行規則（昭和２５年建設省令第３８号）第１７条の３５第１項の規定による登録を受けている場合の"]
[null,null,"当該登録番号を書いてください。"]
[null,"⑥","６欄は、工事施工者が２以上のときは、代表となる工事施工者について記入し、別紙に他の工事施工者について"]
[null,null,"棟別にそれぞれ必要な事項を記入して添えてください。"]
[null,"⑦","建築物又は工作物の名称又は工事名が定まっているときは、７欄に記入してください。"]
["４．","第三面関係"]
[null,"①","住居表示が定まっているときは、１欄の「ロ」に記入してください。"]
[null,"②","２欄の「イ」は、建築物が建築基準法施行令第１０条各号に掲げる建築物に該当する場合に、当該各号の数字を記入してください。"]
[null,"③","２欄の「ロ」は、該当するチェックボックスに「レ」マークを入れてください。"]
[null,"④","２欄の「ハ」は、認証型式部材等製造者が製造をした当該認証に係る型式部材等を有する場合に、その認証番号を記載してください。"]
[null,"⑤","３欄、４欄及び５欄は、計画変更の確認を受けている場合は直前の計画変更の確認について記載してください。"]
[null,"⑥","９欄は、記入欄が不足する場合には、別紙に必要な事項を記入して添えてください。"]
[null,"⑦","１０欄は、軽微な設計変更が２以上あるときは、その一について記入し、別紙にその他の軽微な設計変更について、"]
[null,null,"必要な事項を記入して添えてください。"]
[null,"⑧","１０欄の「ロ」は、変更の内容、変更の理由等の概要を記入してください。"]
[null,"⑨","１０欄は、特定工程に係る建築物にあっては、この申請を直前の中間検査を申請した建築主事等に対して行う場合には、"]
[null,null,"確認から直前の中間検査までに生じた軽微な設計変更の概要について記入する必要はありません。また、それ以外の場合で、"]
[null,null,"確認から直前の中間検査までに生じた軽微な設計変更の概要についてこの欄に記載すべき事項を記載した書類を別に添付すれば、"]
[null,null,"その部分について記入する必要はありません。"]
[null,"⑩","１０欄は、申請建築物について変更後も建築物の計画が建築基準関係規定に適合することが明らかなことが"]
[null,null,"確かめられた旨の図書を添えてください。"]
[null,"⑪","検査後も引き続き建築基準法第３条第２項（同法第８６条の９第１項において準用する場合を含む。）の規定の適用を"]
[null,null,"受ける場合は、その根拠となる規定及び不適合の規定を１１欄又は別紙に記載して添えてください。"]
["５．","第四面関係"]
[null,"①","申請建築物（建築基準法第７条の５及び第６８条の２０第２項（建築物である認証型式部材等に係る場合に限る。）の"]
[null,null,"適用を受けず、かつ、建築士法第３条から第３条の３までの規定に含まれないものを除く。以下同じ。）に関する工事監理の"]
[null,null,"状況について記載してください。ただし、特定工程に係る建築物にあっては、この申請を直前の中間検査を申請した"]
[null,null,"建築主事に対して行う場合には、確認から直前の中間検査までの工事監理の状況について記入する必要はありません。"]
[null,null,"また、それ以外の場合で、確認から直前の中間検査までの工事監理の状況についてこの書類に記載すべき事項を記載した"]
[null,null,"書類を別に添付すれば、その部分について記入する必要はありません。"]
[null,"②","申請建築物が複数の構造方法からなる場合には、それぞれの構造の部分ごとに記載してください。"]
[null,"③","接合状況のうち、鋼材等の金属材料の溶接又は圧接部分に係る内部欠陥の検査、強度検査等の確認については、"]
[null,null,"当該部分に係る検査を行った者の氏名及び資格並びに当該検査に係るサンプル数及びその結果を記載してください。"]
[null,"④","材料のうち、コンクリートについては、四週圧縮強度、塩化物量、アルカリ骨材反応等の試験又は検査（以下「試験等」という。）を"]
[null,null,"行った者、試験等に係るサンプル数及び試験等の結果について記載してください。"]
[null,"⑤","「特定天井に用いる材料の種類並びに当該特定天井の構造及び施工状況」は、建築基準法施行令第３９条第３項、"]
[null,null,"第８１条第１項第３号、第８２条の５第７号又は第１３７条の２第１号イ（３）の規定の適用を受ける部分について記載してください。"]
[null,"⑥","「居室の内装の仕上げに用いる建築材料の種別及び当該建築材料を用いる部分の面積」は、建築基準法施行令第２０条の７"]
[null,null,"第１項第１号に規定する内装の仕上げに用いる建築材料の種別並びに当該建築材料を用いる内装の仕上げの部分及び"]
[null,null,"当該部分の面積について記載してください。"]
[null,"⑦","「天井及び壁の室内に面する部分に係る仕上げ」は、建築基準法第３５条の２の規定の適用を受ける"]
[null,null,"部分について記載してください。"]
[null,"⑧","「開口部」は、防火設備の設置が義務付けられている部分、建築基準法第２８条第１項の規定の適用を受ける部分及び"]
[null,null,"同法第３５条の適用を受ける部分について記載してください。"]
[null,"⑨","「照合結果」は、「適」・「不適」のいずれかを記入し、工事施工者が注意に従わなかった場合には「不適」を"]
[null,null,"記入してください。また、不適の場合には建築主に対して行った報告の内容を記載してください。"]
[null,"⑩","消防法（昭和２３年法律第１８６号）第９条の２第１項に規定する住宅用防災機器の位置及び種類その他"]
[null,null,"ここに書き表せない事項で特に報告すべき事項は、備考欄又は別紙に記載して添えてください。"]
[null,"⑪","この書類に記載すべき事項を含む報告書を別に添付すれば、この書類を別途提出する必要はありません。"]

{"sheet":"プルダウン管理","index":6,"n_rows":119,"n_cols":73,"rows_kept":119,"cut":false,"hidden":true,"merged":[]}
["#一般"]
["平成",null,28,29,30,31,32,33,34,35]
["月",null,1,2,3,4,5,6,7,8,9,10,11,12]
["日","　",1,2,3,4,5,6,7,8,9,10,11,12,13,14,15,16,17,18,19,20,21,22,23,24,25,26,27,28,29,30,31]
["都道府県",null,"北海道","青森県","岩手県","宮城県","秋田県","山形県","福島県","茨城県","栃木県","群馬県","埼玉県","千葉県","東京都","神奈川県","新潟県","富山県","石川県","福井県","山梨県","長野県","岐阜県","静岡県","愛知県","三重県","滋賀県","京都府","大阪府","兵庫県","奈良県","和歌山県","鳥取県","島根県","岡山県","広島県","山口県","徳島県","香川県","愛媛県","高知県","福岡県","佐賀県","長崎県","熊本県","大分県","宮崎県","鹿児島県","沖縄県"]
[]
["①-2 "]
["建築士",null,"一級","二級","木造"]
["認可",null,"大臣","北海道知事","青森県知事","岩手県知事","宮城県知事","秋田県知事","山形県知事","福島県知事","茨城県知事","栃木県知事","群馬県知事","埼玉県知事","千葉県知事","東京都知事","神奈川県知事","新潟県知事","富山県知事","石川県知事","福井県知事","山梨県知事","長野県知事","岐阜県知事","静岡県知事","愛知県知事","三重県知事","滋賀県知事","京都府知事","大阪府知事","兵庫県知事","奈良県知事","和歌山県知事","鳥取県知事","島根県知事","岡山県知事","広島県知事","山口県知事","徳島県知事","香川県知事","愛媛県知事","高知県知事","福岡県知事","佐賀県知事","長崎県知事","熊本県知事","大分県知事","宮崎県知事","鹿児島県知事","沖縄県知事"]
[]
[" 【3.設計者】"]
["  【ﾄ.作成又は確認した設計図書】",null,"設計図書一式","意匠図一式","設備図一式","構造図一式","構造計算書"]
[" 【6.工事施工者】"]
["  【ﾛ.営業所名】①",null,"特","般"]
["  【ﾛ.営業所名】②",null,22,23,24,25,26,27,28,29,30,31,32,33]
[]
["①-3"]
[" 【5.その他の区域、地域、地区又は街区】",null,"法第22条区域","特別用途地区","地区計画区域","土地区画整理区域","第一種風致地区","第二種風致地区","第三種風致地区","田園居住型","地域拠点型","沿道拠点型","都市近郊型"]
["  【7.敷地面積】"]
["   【ﾛ.用途地域等】",null,"指定なし","第一種低層住居","第二種低層住居","第一種住居","第二種住居","第一種中高層住居","第二種中高層住居","準住居地域","近隣商業地域","商業地域","準工業地域","工業地域","工業専用地域"]
[" 【8.主要用途】",null,{"$f":"HLOOKUP(#REF!, プルダウン管理!$C$22:$BU$23,2,FALSE)","v":{"$error":"#REF!"}},{"$f":"HLOOKUP(#REF!, プルダウン管理!$C$22:$BU$23,2,FALSE)","v":{"$error":"#REF!"}},{"$f":"HLOOKUP(#REF!, プルダウン管理!$C$22:$BU$23,2,FALSE)","v":{"$error":"#REF!"}},{"$f":"HLOOKUP(#REF!, プルダウン管理!$C$22:$BU$23,2,FALSE)","v":{"$error":"#REF!"}},{"$f":"HLOOKUP(#REF!, プルダウン管理!$C$22:$BU$23,2,FALSE)","v":{"$error":"#REF!"}},{"$f":"HLOOKUP(#REF!, プルダウン管理!$C$22:$BU$23,2,FALSE)","v":{"$error":"#REF!"}},{"$f":"HLOOKUP(#REF!, プルダウン管理!$C$22:$BU$23,2,FALSE)","v":{"$error":"#REF!"}},{"$f":"HLOOKUP(#REF!, プルダウン管理!$C$22:$BU$23,2,FALSE)","v":{"$error":"#REF!"}},{"$f":"HLOOKUP(#REF!, プルダウン管理!$C$22:$BU$23,2,FALSE)","v":{"$error":"#REF!"}},{"$f":"HLOOKUP(#REF!, プルダウン管理!$C$22:$BU$23,2,FALSE)","v":{"$error":"#REF!"}},{"$f":"HLOOKUP(#REF!, プルダウン管理!$C$22:$BU$23,2,FALSE)","v":{"$error":"#REF!"}},{"$f":"HLOOKUP(#REF!, プルダウン管理!$C$22:$BU$23,2,FALSE)","v":{"$error":"#REF!"}},{"$f":"HLOOKUP(#REF!, プルダウン管理!$C$22:$BU$23,2,FALSE)","v":{"$error":"#REF!"}},{"$f":"HLOOKUP(#REF!, プルダウン管理!$C$22:$BU$23,2,FALSE)","v":{"$error":"#REF!"}},{"$f":"HLOOKUP(#REF!, プルダウン管理!$C$22:$BU$23,2,FALSE)","v":{"$error":"#REF!"}},{"$f":"HLOOKUP(#REF!, プルダウン管理!$C$22:$BU$23,2,FALSE)","v":{"$error":"#REF!"}},{"$f":"HLOOKUP(#REF!, プルダウン管理!$C$22:$BU$23,2,FALSE)","v":{"$error":"#REF!"}},{"$f":"HLOOKUP(#REF!, プルダウン管理!$C$22:$BU$23,2,FALSE)","v":{"$error":"#REF!"}},null,{"$f":"HLOOKUP(#REF!, プルダウン管理!C22:BU23,2,FALSE)","v":{"$error":"#REF!"}},{"$f":"HLOOKUP(#REF!, プルダウン管理!$C$22:$BU$23,2,FALSE)","v":{"$error":"#REF!"}},{"$f":"HLOOKUP(#REF!, プルダウン管理!$C$22:$BU$23,2,FALSE)","v":{"$error":"#REF!"}},{"$f":"HLOOKUP(#REF!, プルダウン管理!$C$22:$BU$23,2,FALSE)","v":{"$error":"#REF!"}},{"$f":"HLOOKUP(#REF!, プルダウン管理!$C$22:$BU$23,2,FALSE)","v":{"$error":"#REF!"}},{"$f":"HLOOKUP(#REF!, プルダウン管理!$C$22:$BU$23,2,FALSE)","v":{"$error":"#REF!"}},{"$f":"HLOOKUP(#REF!, プルダウン管理!$C$22:$BU$23,2,FALSE)","v":{"$error":"#REF!"}},{"$f":"HLOOKUP(#REF!, プルダウン管理!$C$22:$BU$23,2,FALSE)","v":{"$error":"#REF!"}},{"$f":"HLOOKUP(#REF!, プルダウン管理!$C$22:$BU$23,2,FALSE)","v":{"$error":"#REF!"}},{"$f":"HLOOKUP(#REF!, プルダウン管理!$C$22:$BU$23,2,FALSE)","v":{"$error":"#REF!"}},{"$f":"HLOOKUP(#REF!, プルダウン管理!$C$22:$BU$23,2,FALSE)","v":{"$error":"#REF!"}},{"$f":"HLOOKUP(#REF!, プルダウン管理!$C$22:$BU$23,2,FALSE)","v":{"$error":"#REF!"}},{"$f":"HLOOKUP(#REF!, プルダウン管理!$C$22:$BU$23,2,FALSE)","v":{"$error":"#REF!"}},{"$f":"HLOOKUP(#REF!, プルダウン管理!$C$22:$BU$23,2,FALSE)","v":{"$error":"#REF!"}},{"$f":"HLOOKUP(#REF!, プルダウン管理!$C$22:$BU$23,2,FALSE)","v":{"$error":"#REF!"}},{"$f":"HLOOKUP(#REF!, プルダウン管理!$C$22:$BU$23,2,FALSE)","v":{"$error":"#REF!"}},{"$f":"HLOOKUP(#REF!, プルダウン管理!$C$22:$BU$23,2,FALSE)","v":{"$error":"#REF!"}},{"$f":"HLOOKUP(#REF!, プルダウン管理!$C$22:$BU$23,2,FALSE)","v":{"$error":"#REF!"}}]
["   区分番号",null,"08010","08020","08030","08040","08050","08060","08070","08080","08090","08100","08110","08120","08130","08132","08140","08150","08160","08170","08180","08190","08210","08230","08240","08250","08260","08270","08280","08290","08300","08310","08320","08330","08340","08350","08360","08370","08370","08380","08390","08390","08400","08410","08420","08430","08438","08440","08450","08452","08456","08456","08456","08456","08458","08460","08470","08480","08490","08500","08510","08520","08530","08540","08550","08560","08570","08580","08590","08600","08610","08620","08990"]
["   ※変換",null,"A0010_","A0020_","A0030_","A0040_","A0050_","A0060_","A0070_","A0080_","A0090_","A0100_","A0110_","A0120_","A0130_","A0140_","A0150_","A0160_","A0170_","A0180_","A0190_","A0200_","A0210_","A0220_","A0230_","A0240_","A0250_","A0260_","A0270_","A0280_","A0290_","A0300_","A0310_","A0320_","A0330_","A0340_","A0350_","A0360_","A0370_","A0380_","A0390_","A0400_","A0410_","A0420_","A0430_","A0440_","A0450_","A0460_","A0470_","A0480_","A0490_","A0500_","A0510_","A0520_","A0530_","A0540_","A0550_","A0560_","A0570_","A0580_","A0590_","A0600_","A0610_","A0620_","A0630_","A0640_","A0650_","A0660_","A0670_","A0680_","A0690_","A0700_","A0710_"]
["   主要用途区分",null,"一戸建ての住宅","長屋","共同住宅","寄宿舎","下宿","店舗併用住宅","幼稚園","小学校","中学校","特別支援学校","大学","専修学校","各種学校","幼保連携認定こども園","図書館","博物館","神社","老人ホーム","保育所","助産所","児童福祉施設等","公衆浴場(個室付浴場に係る公衆浴場を除く)","診療所(患者の収容施設のあるもの)","診療所(患者の収容施設のないもの)","病院","巡査派出所","公衆電話所","郵便法の規定により行う郵便の業務の用に供する施設","地方公共団体の支庁又は支所","公衆便所・休憩所又は路線バスの停留所の上屋","令第１３０条の４第５号に基づき国交大臣が指定する施設","税務署","工場(自動車修理工場を除く)","自動車修理工場","危険物の貯蔵又は処理に供するもの","ボーリング場","ゴルフ練習場","体育館","マージャン屋","カラオケボックス","ホテル","自動車教習所","畜舎","堆肥舎","日用品の販売を主たる目的とする店舗","百貨店","飲食店","食堂","理髪店","洋服店","パン屋","学習塾","銀行の支店","物品販売業を営む店舗以外の店舗","事務所","映画スタジオ","自動車車庫","自転車駐車場","倉庫業を営む倉庫","倉庫業を営まない倉庫","劇場","観覧場","公会堂","展示場","料理店","キャバレー","ダンスホール","個室付浴場","卸売市場","火葬場","その他"]
[null,null,null,null,null,null,null,"事務所併用住宅",null,null,"高等学校",null,"高等専門学校",null,null,null,"町内会館",null,"寺院","身体障害者福祉ホーム",null,null,null,null,null,null,null,null,null,null,null,null,null,"警察署",null,null,null,"スケート場","バッティング練習場","スポーツの練習場","パチンコ屋",null,"旅館",null,null,"水産物の増殖場",null,"マーケット",null,"喫茶店","美容院","畳屋","米屋","華道教室","損害保険代理店",null,null,"テレビスタジオ",null,null,null,null,"映画館",null,"集会場",null,null,"カフェー",null,"ヌードスタジオ",null,"と畜場"]
[null,null,null,null,null,null,null,null,null,null,null,null,null,null,null,null,"集会所",null,"教会",null,null,null,null,null,null,null,null,null,null,null,null,null,null,"保健所",null,null,null,"水泳場",null,null,"射的場",null,null,null,null,"水産物の養殖場",null,"物品販売業を営む店舗",null,null,"クリーニング取次店","建具屋","豆腐屋","囲碁教室","宅地建物取引業を営む店舗",null,null,null,null,null,null,null,"演芸場",null,null,null,null,"ナイトクラブ",null,"のぞき劇場",null,"汚物処理場"]
[null,null,null,null,null,null,null,null,null,null,null,null,null,null,null,null,null,null,null,null,null,null,null,null,null,null,null,null,null,null,null,null,null,"消防署",null,null,null,"スキー場",null,null,"勝馬発売所",null,null,null,null,null,null,null,null,null,"質屋","自転車店","菓子屋",null,null,null,null,null,null,null,null,null,null,null,null,null,null,"バー",null,"ストリップ劇場",null,"ごみ焼却場"]
[null,null,null,null,null,null,null,null,null,null,null,null,null,null,null,null,null,null,null,null,null,null,null,null,null,null,null,null,null,null,null,null,null,null,null,null,null,null,null,null,"場外車券売場",null,null,null,null,null,null,null,null,null,"貸衣装屋","家電店",null,null,null,null,null,null,null,null,null,null,null,null,null,null,null,null,null,null,null,"その他の処理施設"]
[null,null,null,null,null,null,null,null,null,null,null,null,null,null,null,null,null,null,null,null,null,null,null,null,null,null,null,null,null,null,null,null,null,null,null,null,null,null,null,null,null,null,null,null,null,null,null,null,null,null,"貸本屋"]
[" 【12.建築物の数】"]
["  【ｲ.申請に係る建築物の数】",null,1,2,3,4,5]
["  【ﾛ.同一敷地内の他の建築物の数】",null,1,2,3,4,5,6,7,8,9,10]
[" 【13.建築物の高さ等】"]
["  【ﾛ.階数】"]
["   地上",null,1,2,3,4,5,6,7,8,9,10]
["   地下",null,1,2,3]
["  【ﾊ.構造】",null,"木（軸組）","木(枠組壁工法）","鉄筋コンクリート","鉄骨","鉄骨鉄筋コンクリート","アルミニウム合金","コンクリートブロック"]
[" 【17.特定工程工事終了予定年月日】",null,1,2,3]
["①-4"]
[" 【1.番号】",null,1,2,3,4,5,6]
[" 【2.用途】","→","①-3　【8.主要用途】"]
[" 【4.構造】","→","①-3　【ﾊ.構造】"]
[" 【6.階数】"]
[" 【ｲ.地階を除く階数】",null,1,2,3,4,5,6,7,8,9,10]
[" 【ﾛ.地階】",null,1,2,3]
[" 【ﾊ.昇降機塔等の階の数】",null,1,2,3,4,5,6,7,8,9,10]
[" 【ﾆ.地階の倉庫等の階の数】",null,1,2,3,4,5,6,7,8,9,10]
[" 【9.確認の特例】"]
["  【ﾊ.建築基準法施行令第10条各号に掲げる建築物の区分】",null,1,2,3,4]
[" 【15.便所の種類】",null,"水洗(生放流)","水洗(浄化槽)","汲取り","なし"]
[" 【10.床面積】",null,1,2,3,4,5,6]
["①-5"]
[" 【1.番号】",null,1,2,3,4,5,6]
[" 【2.階】",null,1,2,3,4,5,6,7,8,9,10]
[" 【7.用途別床面積】","→","①-3　【8.主要用途】"]
[]
["①-6"]
[" 【1.番号】",null,1,2,3,4,5,6]
[" 【3.建築物の高さ等】"]
["  【ﾊ.階数】"]
["   地上","→","①-3　【13.建築物の高さ等】"]
["   地下","→","①-3　【13.建築物の高さ等】"]
[]
["③-2"]
["  ■ ",null,"■"]
[" 【5.主要用途】"]
["  （1）居住専用建築物",null,"01","02","03","04","05"]
["  （2）居住産業併用建築物",null,11,12,13,14,15,16,17,18,19,20,21,22,23,24,25,26,27,28,29,30,31,32,33,34,35,36,37,38,39,40,41,42,43,44,45,46,99]
["  （3）産業専用建築物",null,1,2,3,4,5,6]
[" 【6.一の建築物ごとの内容】"]
["   【ﾍ.地上の階数】",null,1,2,3,4,5,6,7,8,9,10]
["   【ﾄ.地下の階数】",null,1,2,3]
["③-3"]
[" 【5.主要用途】"]
["  【ｲ.番号】",null,1,2,3,4,5,6]
["  【ﾄ.戸数】",null,1,2,3,4,5,6,7,8,9,10,11,12,13,14,15,16,17,18,19,20]
["③-4"]
[" 【1.主要用途】",null,null," 【5.主要用途】"]
["  （1）居住専用建築物","→","③-2","  （1）居住専用建築物"]
["  （2）居住産業併用建築物","→","③-2","  （2）居住産業併用建築物"]
["  （3）産業専用建築物",null,1,2,3]
[]
["④-2"]
["  【ｲ.資　　格】","→","①-2 ","建築士"]
[null,"→","①-2 ","認可"]
["  【ﾊ.建築士事務所名】","→","#一般","都道府県"]
["  【ﾄ.作成した設計図書】","→","①-2 ","【ﾄ.作成した設計図書】"]
[" 【4.工事施工者】"]
["  【ﾛ.営業所名】","→","①-2 ","認可"]
[null,"→","①-2 ","  【ﾛ.営業所名】①"]
[null,"→","①-2 ","  【ﾛ.営業所名】②"]
[]
[" 【6.工作物の概要】"]
[null,"煙突","06310"]
[null,"鉄筋コンクリート造の柱","06320"]
[null,"鉄柱","06320"]
[null,"木柱","06320"]
[null,"広告塔","06330"]
[null,"広告板","06330"]
[null,"装飾塔","06330"]
[null,"記念塔","06330"]
[null,"高架水槽","06340"]
[null,"サイロ","06340"]
[null,"物見塔","06340"]
[null,"擁壁","06350"]
["  【ﾊ.構　　造】",null,"鉄筋コンクリート造","鉄骨造","鉄骨鉄筋コンクリート造","コンクリートブロック造"]
[]
["⑤-2"]
["  【ｲ.資　　格】","→","①-2 ","建築士"]
[null,"→","①-2 ","認可"]
["  【ﾊ.建築士事務所名】","→","#一般","都道府県"]
["  【ﾄ.作成した設計図書】","→","①-2 ","【ﾄ.作成した設計図書】"]
[" 【6.昇降機の概要】"]
["  【ｲ.種　　別】",null,"エレベーター","エレベーター（小荷物専用昇降機）","エスカレーター","いす式階段昇降機"]
["  【ﾛ.用　　途】",null,"乗用","寝台用","乗用（車いす用）","寝台用（車いす用）","荷物用","小荷物用"]
[]
["⑦-3"]
[" 【2.工事種別】"]
["  【ｲ.建築基準法施行令第１０条各号に掲げる建築物の区分】",null,1,2,3,4]

{"sheet":"チェックボックス管理","index":7,"n_rows":105,"n_cols":3,"rows_kept":105,"cut":false,"hidden":true,"merged":[[68,0,68,2],[69,0,69,2],[77,0,77,2],[1,0,1,2],[0,0,0,2],[9,0,9,2],[31,0,31,2],[53,0,53,2],[58,0,58,2]]}
["①確認申請書"]
["第二面 ①-2"]
["（構造設計一級建築士又は設備設計一級建築士である旨の表示をした者）","建築士法第20条の２第１項の表示をした者",false]
[null,"建築士法第20条の２第３項の表示をした者",false]
[null,"建築士法第20条の３第１項の表示をした者",false]
[null,"建築士法第20条の３第３項の表示をした者",false]
["【7.構造計算適合性判定の申請】","申請済",false]
[null,"未申請",false]
[null,"申請不要",false]
["第三面 ①-3"]
["【3.都市計画区域及び準都市計画区域の内外の別等】","都市計画区域内",false]
[null,"市街化区域",false]
[null,"市街化調整区域",false]
[null,"区域区分非設定",false]
[null,"準都市計画区域内",false]
[null,"都市計画区域及び準都市計画区域外",false]
["【4.防火地域】","防火地域",false]
[null,"準防火地域",false]
[null,"指定なし",false]
["【9.工事種別】","新築",false]
[null,"増築",false]
[null,"改築",false]
[null,"移転",false]
[null,"用途変更",false]
[null,"大規模の修繕",false]
[null,"大規模の模様替",false]
["【ﾆ.建築基準法第56条第7項の規定による特例の適用の有無】","有",false]
[null,"無",false]
["【ﾎ.適用があるときは、特例の区分】","道路高さ制限不適用",false]
[null,"隣地高さ制限不適用",false]
[null,"北側高さ制限不適用",false]
["第四面 ①-4"]
["【3.工事種別】","新築",false]
[null,"増築",false]
[null,"改築",false]
[null,"移転",false]
[null,"用途変更",false]
[null,"大規模の修繕",false]
[null,"大規模の模様替",false]
["【5.耐火建築物】","耐火建築物",false]
[null,"準耐火建築物（イ－１）",false]
[null,"準耐火建築物（イ－２）",false]
[null,"準耐火建築物（ロ－１）",false]
[null,"準耐火建築物（ロ－２）",false]
[null,"耐火構造建築物",false]
[null,"特定避難時間倒壊等防止建築物",false]
[null,"その他",false]
["【9.確認の特例】","有",false]
[null,"無",false]
[null,"有",false]
[null,"無",false]
[null,"建築基準法施行令第136条の2の11第1号イ",false]
[null,"建築基準法施行令第136条の2の11第1号ロ",false]
["第五面 ①-5"]
["【ﾛ.建築基準法施行令第３９条第３項に規定する特定天井】","有",false]
[null,"無",false]
["【ﾛ.建築基準法施行令第３９条第３項に規定する特定天井】","有",false]
[null,"無",false]
["第六面 ①-6"]
["【4.特定構造計算基準又は特定増改築構造計算基準の別】","特定構造計算基準",false]
[null,"特定増改築構造計算基準",false]
["【5.構造計算の区分】","建築基準法施行令第８１条第１項各号に掲げる基準に従った構造計算",false]
[null,"建築基準法施行令第８１条第２項第１号イに掲げる構造計算",false]
[null,"建築基準法施行令第８１条第２項第１号ロに掲げる構造計算",false]
[null,"建築基準法施行令第８１条第２項第２号イに掲げる構造計算",false]
[null,"建築基準法施行令第８１条第３項に掲げる構造計算",false]
["【6.構造計算に用いたプログラム】","建築基準法第２０条第１項第２号イ又は第３号イの認定を受けたプログラム",false]
[null,"その他のプログラム",false]
["⑥計画変更申請書(建築物）"]
["第二面 ⑥-2"]
["（構造設計一級建築士又は設備設計一級建築士である旨の表示をした者）","建築士法第20条の２第１項の表示をした者",false]
[null,"建築士法第20条の２第３項の表示をした者",false]
[null,"建築士法第20条の３第１項の表示をした者",false]
[null,"建築士法第20条の３第３項の表示をした者",false]
["【7.構造計算適合性判定の申請】","申請済",false]
[null,"未申請",false]
[null,"申請不要",false]
["第二面 ⑥-3"]
["【3.都市計画区域及び準都市計画区域の内外の別等】","都市計画区域内",false]
[null,"市街化区域",false]
[null,"市街化調整区域",false]
[null,"区域区分非設定",false]
[null,"準都市計画区域内",false]
[null,"都市計画区域及び準都市計画区域外",false]
["【4.防火地域】","防火地域",false]
[null,"準防火地域",false]
[null,"指定なし",false]
["【9.工事種別】","新築",false]
[null,"増築",false]
[null,"改築",false]
[null,"移転",false]
[null,"用途変更",false]
[null,"大規模の修繕",false]
[null,"大規模の模様替",false]
["【ﾆ.建築基準法第56条第7項の規定による特例の適用の有無】","有",false]
[null,"無",false]
["【ﾎ.適用があるときは、特例の区分】","道路高さ制限不適用",false]
[null,"隣地高さ制限不適用",false]
[null,"北側高さ制限不適用",false]
[]
["④-2"]
["【6.工作物の概要】","新築",false]
[null,"増築",false]
[null,"改築",false]
[null,"その他",false]